[Event "45th FIDE Olympiad 2024"]
[Site "Budapest"]
[Date "2024.09.11"]
[Round "1.52"]
[White "Santos Latasa, Jaime"]
[Black "McKennis, Darren"]
[Result "1-0"]
[ECO "D45"]
[WhiteElo "2624"]
[BlackElo "1905"]
[Annotator "TA"]
[PlyCount "73"]
[EventDate "2024.09.05"]
[EventType "team-tourn"]
[EventCountry "HUN"]
[SourceTitle "playchess.com"]
[Source "ChessBase"]
[SourceQuality "1"]
[WhiteTeam "Spain"]
[BlackTeam "Jamaica"]
[WhiteTeamCountry "ESP"]
[BlackTeamCountry "JAM"]
[TimeControl "40/5400+30:1800+30"]

{[%evp 16,73,25,31,15,16,17,20,48,53,51,52,62,50,62,55,50,47,54,37,62,30,105,93,108,65,91,81,84,84,159,150,152,150,158,122,258,239,279,280,270,249,295,310,301,300,280,304,302,257,438,443,452,417,468,420,699,693,1053,1006]} 1. c4 {[%emt 0:00:03]} c6 {[%emt 0:00:08]} 2. Nf3 {[%emt 0:00:12]} d5 {[%emt 0:00:09]} 3. e3 {[%emt 0:00:05]} Nf6 {[%emt 0:00:17]} 4. Nc3 {[%emt 0:00:08]} e6 {[%emt 0:01:45]} 5. b3 {[%emt 0:01:04]} Bd6 {[%emt 0:06:48]} 6. Bb2 {[%emt 0:00:23]} Nbd7 {[%emt 0:00:53]} 7. Qc2 {[%emt 0:00:08]} O-O {[%emt 0:09:41]} 8. Be2 {[%emt 0:00:51]} a6 {[%emt 0:02:48]} 9. d4 {[%emt 0:01:00]} dxc4 {[%emt 0:03:28]} 10. bxc4 {[%emt 0:00:33]} c5 {[%emt 0:00:36]} 11. O-O {[%emt 0:01:04]} Qc7 {[%emt 0:01:30] The position is equal.} 12. d5 {[%emt 0:04:51]} exd5 {[%emt 0:05:06]} 13. Nxd5 {[%emt 0:00:25]} Nxd5 {[%emt 0:01:45]} 14. cxd5 {[%emt 0:00:05]} Re8 {[%emt 0:03:31]} 15. a4 {[%emt 0:01:06] White is much more active.} b6 {[%emt 0:03:13]} 16. Rfd1 {[%emt 0:04:03]} Nf8 {[%emt 0:05:49]} 17. h3 $40 {[%emt 0:02:52][%mdl 128] White attacks.} Bd7 {[%emt 0:02:41]} 18. Nd2 {[%emt 0:03:49]} Be5 {[%emt 0:07:05]} (18... Ng6 $11) 19. Bxe5 $16 {[%emt 0:02:04]} Qxe5 {[%emt 0:01:02]} 20. Nc4 {[%emt 0:05:03]} Qf6 {[%emt 0:03:15]} 21. a5 {[%emt 0:06:01]} Bf5 {[%emt 0:01:14] [#]} 22. Qc1 {[%emt 0:00:35]} Nd7 {[%emt 0:00:25]} (22... b5 $142) 23. axb6 {[%emt 0:00:22]} Nxb6 {[%emt 0:00:08]} 24. Ra5 {[%emt 0:03:21]} Nd7 {[%emt 0:12:51]} 25. f3 {[%emt 0:08:57]} Qg5 {[%emt 0:03:04] Loses the game.} (25... Qg6 $16 26. h4 (26. e4 Bxh3 27. Bf1 Ne5 $16) 26... Qf6) 26. e4 $18 {[%emt 0:05:13]} Qxc1 {[%emt 0:02:07]} 27. Rxc1 {[%emt 0:00:13] aiming for Nd6.} Bg6 {[%emt 0:00:49]} 28. g4 {[%emt 0:00:14]} f6 {[%emt 0:05:32]} 29. Rca1 {[%emt 0:01:04]} Reb8 {[%emt 0:01:22]} 30. Rxa6 {[%emt 0:01:04]} Rxa6 {[%emt 0:00:24]} 31. Rxa6 {[%emt 0:00:05]} Kf8 {[%emt 0:00:13]} 32. Ra7 {[%emt 0:00:37]} Ke7 {[%emt 0:02:29]} (32... Ne5 33. Kf2 Nxc4) 33. Kf2 {[%emt 0:02:06]} Bf7 {[%emt 0:03:11]} 34. Na5 {[%emt 0:03:59] Threatens to win with Nc6+.} Rb6 {[%emt 0:07:46]} 35. Nb7 {[%emt 0:02:08]} Ke8 {[%emt 0:01:04] [#]} (35... c4 $142 36. Bxc4 Kf8) 36. Bb5 $1 {[%emt 0:01:33][%mdl 512]} Bg6 {[%emt 0:01:29]} (36... Rxb5 37. Nd6+) 37. Bc6 {[%emt 0:01:04] Weighted Error Value: White=0.08 (flawless) /Black=0.39.  Mistake:       	---       	Black=5      Inaccurate:     	White=2     	Black=3      OK:         	White=14    	Black=6      Best:        	White=1     	Black=2} 1-0

[Event "45th FIDE Olympiad 2024"]
[Site "Budapest"]
[Date "2024.09.11"]
[Round "1.53"]
[White "Bacrot, Etienne"]
[Black "Espinoza Solano, Jose Nahum"]
[Result "1-0"]
[ECO "C66"]
[WhiteElo "2665"]
[BlackElo "2156"]
[Annotator "TA"]
[PlyCount "116"]
[EventDate "2024.09.05"]
[EventType "team-tourn"]
[EventCountry "HUN"]
[SourceTitle "playchess.com"]
[Source "ChessBase"]
[SourceQuality "1"]
[WhiteTeam "France"]
[BlackTeam "Nicaragua"]
[WhiteTeamCountry "FRA"]
[BlackTeamCountry "NCA"]
[TimeControl "40/5400+30:1800+30"]

{[%evp 22,116,9,0,0,14,27,30,30,32,30,25,33,30,34,39,29,18,35,0,4,0,22,0,0,0,12,1,6,0,0,0,0,0,12,12,23,16,12,12,12,12,12,12,12,12,12,12,98,98,98,98,98,91,91,70,148,156,239,227,312,280,320,275,335,219,329,312,209,0,172,164,152,152,321,327,304,313,380,367,310,280,29967,29969,29972,29970,29973,29975,29975,29976,29976,29970,29978,29979,29981,29982,29984]} 1. e4 {[%emt 0:00:03]} e5 {[%emt 0:00:07]} 2. Nf3 {[%emt 0:00:05]} Nc6 {[%emt 0:00:05]} 3. Bb5 {[%emt 0:00:05]} d6 {[%emt 0:00:12]} 4. d4 {[%emt 0:03:49]} Bd7 {[%emt 0:00:08]} 5. Nc3 {[%emt 0:03:18]} exd4 {[%emt 0:01:31]} 6. Nxd4 {[%emt 0:00:07]} Nf6 {[%emt 0:00:06]} 7. O-O {[%emt 0:04:53]} Be7 {[%emt 0:02:39]} 8. Bxc6 {[%emt 0:03:57]} bxc6 {[%emt 0:00:17]} 9. b3 {[%emt 0:00:05]} O-O {[%emt 0:05:05]} 10. Bb2 {[%emt 0:01:16]} Re8 {[%emt 0:01:44]} 11. Qd3 {[%emt 0:02:15]} c5 {[%emt 0:08:47]} 12. Nde2 {[%emt 0:00:35]} Bf8 {[%emt 0:01:17]} 13. Nf4 {[%emt 0:05:38]} Bc6 {[%emt 0:04:05][%cal Rf6e4]} 14. Ncd5 {[%emt 0:02:20]} Nxe4 {[%emt 0:09:43] White has an edge.} 15. Rfe1 {[%emt 0:10:19]} (15. Rae1 {is more complex.} Bxd5 16. Qxd5 Qg5 17. f3) 15... Bxd5 {[%emt 0:00:27]} 16. Nxd5 {[%emt 0:00:11]} c6 $1 {[%emt 0:00:04]} 17. Rxe4 {[%emt 0:00:16]} cxd5 {[%emt 0:00:42]} 18. Rxe8 {[%emt 0:00:11]} Qxe8 {[%emt 0:00:03]} 19. Qxd5 {[%emt 0:00:07]} Rd8 {[%emt 0:00:08]} 20. Qd3 {[%emt 0:06:39]} d5 {[%emt 0:03:06]} 21. Bc3 {[%emt 0:00:27]} Qe4 {[%emt 0:02:10]} 22. Re1 {[%emt 0:01:14]} Qxd3 {[%emt 0:00:40]} 23. cxd3 $11 {[%emt 0:00:02][%mdl 4096] Endgame. KRB-KRB} Bd6 {[%emt 0:00:24]} 24. Kf1 {[%emt 0:01:52]} Kf8 {[%emt 0:00:33]} 25. h3 {[%emt 0:00:41]} f6 {[%emt 0:04:29]} 26. Ba5 {[%emt 0:05:40]} Re8 {[%emt 0:01:10]} 27. Rc1 {[%emt 0:00:42]} Ke7 {[%emt 0:01:52] [#]} 28. d4 $1 {[%emt 0:01:08]} Rc8 {[%emt 0:00:18]} 29. dxc5 {[%emt 0:07:09]} Rxc5 {[%emt 0:00:16]} 30. Bd2 {[%emt 0:00:06]} Rxc1+ {[%emt 0:05:27]} 31. Bxc1 {[%emt 0:00:01] KB-KB} Kd7 {[%emt 0:01:00]} 32. Ke2 {[%emt 0:01:14]} a6 {[%emt 0:00:08]} 33. Kd3 {[%emt 0:00:24]} Kc6 {[%emt 0:00:07]} 34. Bb2 {[%emt 0:00:26]} Bc5 {[%emt 0:00:34]} (34... Be7 $11) 35. f4 $16 {[%emt 0:01:02][%cal Bf2f4,Bf4f5][%mdl 32]} Bd6 {[%emt 0:01:37]} 36. f5 {[%emt 0:00:16]} Bc5 {[%emt 0:01:10]} 37. g4 {[%emt 0:02:49][%cal Bg2g4,Bg4g5][%mdl 32]} Bd6 {[%emt 0:00:11]} 38. Ke3 {[%emt 0:07:08]} Kb5 {[%emt 0:02:10]} (38... h6 $14) 39. g5 $1 {[%emt 0:02:48]} Be7 {[%emt 0:02:36]} (39... Bc5+ $16 {was called for.} 40. Kf3 fxg5) 40. Kd3 $18 {[%emt 0:11:32]} Kc6 {[%emt 0:00:49]} 41. gxf6 {[%emt 0:39:36]} gxf6 {[%emt 0:30:02]} 42. a4 {[%emt 0:00:12]} Kd7 {[%emt 0:04:49]} 43. Bd4 {[%emt 0:01:48]} Kc6 {[%emt 0:01:09]} (43... Kd6 {is a better defense.} 44. Ke2 Kc7) 44. Bc3 {[%emt 0:00:38]} Bd8 {[%emt 0:00:27]} 45. Bd4 {[%emt 0:02:40]} Be7 {[%emt 0:00:12]} 46. Ke2 {[%emt 0:00:09]} Kd7 {[%emt 0:01:25]} 47. Kf3 {[%emt 0:00:30] White is more active.} Kd8 $2 {[%emt 0:02:30] [#] A mistake that costs the game.} (47... Kc6 $16 48. Kg4 Kd6) 48. Kg4 $1 {[%emt 0:03:08]} Ke8 {[%emt 0:00:07]} 49. Bc3 {[%emt 0:00:52]} Bd8 {[%emt 0:04:49]} 50. b4 {[%emt 0:00:00]} Kd7 {[%emt 0:00:00]} 51. Kh5 {[%emt 0:00:00] Kh6 would now be deadly.} d4 $2 {[%emt 0:00:00]} (51... Bb6 $18 52. Bxf6 d4) 52. Bxd4 {[%emt 0:00:00] White mates.} Kd6 {[%emt 0:00:00]} 53. Kh6 {[%emt 0:00:00]} Kd5 {[%emt 0:00:00] [#]} 54. Kxh7 $1 {[%emt 0:00:00]} Kxd4 {[%emt 0:04:34]} 55. h4 {[%emt 0:00:00][%cal Bh3h4,Bh4h5,Bh5h6][%mdl 32]} Kc4 {[%emt 0:00:12]} 56. h5 {[%emt 0:00:00]} Bb6 {[%emt 0:00:04]} 57. h6 {[%emt 0:00:00]} Be3 {[%emt 0:00:08] [#]} 58. b5 $1 {[%emt 0:00:00][%mdl 512]} Kd5 {[%emt 0:00:22] Weighted Error Value: White=0.09 (flawless) /Black=0.25 (precise) .  Loses game:     	---       	Black=1      Mistake:       	---       	Black=5      Inaccurate:     	White=2     	---        OK:         	White=18    	Black=12     Best:        	White=4     	Black=1      Strong:       	White=2     	Black=1} (58... a5 59. Kg7) 1-0

[Event "45th FIDE Olympiad 2024"]
[Site "Budapest"]
[Date "2024.09.11"]
[Round "1.53"]
[White "Camacho Collados, Jose"]
[Black "Houssein, Mohamed Bilal"]
[Result "1-0"]
[ECO "A30"]
[WhiteElo "2352"]
[BlackElo "1870"]
[Annotator "ChessBase"]
[PlyCount "123"]
[EventDate "2024.09.05"]
[EventType "team-tourn"]
[EventCountry "HUN"]
[SourceTitle "playchess.com"]
[Source "ChessBase"]
[SourceQuality "1"]
[WhiteTeam "Wales"]
[BlackTeam "Djibouti"]
[WhiteTeamCountry "WLS"]
[BlackTeamCountry "DJI"]
[TimeControl "40/5400+30:1800+30"]

1. Nf3 c5 2. g3 Nf6 3. Bg2 Nc6 4. O-O e5 5. c4 d5 6. cxd5 Nxd5 7. Nc3 Be6 8. d3 Be7 9. Nxd5 Bxd5 10. Be3 O-O 11. Rc1 b6 12. a3 Qd6 13. Qa4 Rac8 14. Nd2 Bxg2 15. Kxg2 f5 16. f3 Kh8 17. Rc4 Na5 18. Rc2 Qc6 19. Qxc6 Nxc6 20. b4 Nd4 21. Bxd4 exd4 22. bxc5 Rxc5 23. Rxc5 Bxc5 24. Nb3 Re8 25. Kf2 a5 26. Nxc5 bxc5 27. Rb1 Kg8 28. Rb5 Rc8 29. Rxa5 c4 30. dxc4 Rxc4 31. Rxf5 Ra4 32. Rf4 h6 33. h4 Kh7 34. h5 Kg8 35. Ke1 Kh7 36. Kd2 Kg8 37. Kd3 Rxa3+ 38. Kxd4 Ra4+ 39. Ke3 Ra3+ 40. Kf2 Ra2 41. Rf5 Rb2 42. f4 Ra2 43. Kf3 Ra3+ 44. e3 Rb3 45. g4 Ra3 46. g5 hxg5 47. Rxg5 Kf7 48. Rf5+ Ke6 49. Rb5 Kf6 50. Rb6+ Kf7 51. h6 gxh6 52. Rxh6 Ra1 53. e4 Ra3+ 54. Kg4 Ra5 55. e5 Ke7 56. Kf5 Ra4 57. Rh7+ Kf8 58. Rb7 Ke8 59. e6 Kd8 60. Ke5 Kc8 61. Rd7 Ra5+ 62. Kf6 1-0

[Event "45th FIDE Olympiad 2024"]
[Site "Budapest"]
[Date "2024.09.11"]
[Round "1.54"]
[White "Alfaro, William"]
[Black "Maurizzi, Marc`andria"]
[Result "0-1"]
[ECO "A70"]
[WhiteElo "2133"]
[BlackElo "2595"]
[Annotator "TA"]
[PlyCount "104"]
[EventDate "2024.09.05"]
[EventType "team-tourn"]
[EventCountry "HUN"]
[SourceTitle "playchess.com"]
[Source "ChessBase"]
[SourceQuality "1"]
[WhiteTeam "Nicaragua"]
[BlackTeam "France"]
[WhiteTeamCountry "NCA"]
[BlackTeamCountry "FRA"]
[TimeControl "40/5400+30:1800+30"]

{[%evp 20,104,47,54,66,41,61,55,56,53,64,76,77,70,75,57,60,44,97,43,43,33,40,5,3,3,8,8,22,10,0,0,0,-35,3,0,0,-38,-38,-38,9,9,32,9,40,11,31,24,24,0,0,-16,-8,-244,-35,-245,-239,-320,-305,-310,-309,-260,0,-597,-577,-648,-627,-649,-637,-537,-691,-674,-622,-1325,-1303,-1273,-1256,-1114,-1195,-2764,-2453,-29988,-29989,-29987,-29988,-29992,-29993]} 1. d4 {[%emt 0:00:19]} Nf6 {[%emt 0:00:05]} 2. c4 {[%emt 0:00:13]} e6 {[%emt 0:01:27]} 3. Nf3 {[%emt 0:00:13]} c5 {[%emt 0:00:21]} 4. d5 {[%emt 0:00:07]} d6 {[%emt 0:00:05]} 5. Nc3 {[%emt 0:00:05]} exd5 {[%emt 0:00:05]} 6. cxd5 {[%emt 0:00:04]} g6 {[%emt 0:00:05]} 7. h3 {[%emt 0:00:42]} Bg7 {[%emt 0:00:48]} 8. e4 {[%emt 0:03:09]} O-O {[%emt 0:00:23]} 9. Bd3 {[%emt 0:04:55]} Nbd7 {[%emt 0:16:17]} 10. O-O {[%emt 0:00:00]} a6 {[%emt 0:00:01]} 11. a4 {[%emt 0:00:00]} Ne8 {[%emt 0:01:25]} 12. Bf4 {[%emt 0:04:16]} b6 {[%emt 0:06:35]} 13. Qe2 {[%emt 0:00:24]} Qe7 {[%emt 0:01:50] White is slightly better.} 14. Rae1 {[%emt 0:07:47]} Ne5 {[%emt 0:01:34]} 15. Nxe5 {[%emt 0:00:47]} dxe5 {[%emt 0:02:57]} 16. Be3 {[%emt 0:10:44]} Qc7 {[%emt 0:24:53]} 17. Rc1 {[%emt 0:21:16][%cal Oa4a5]} Nd6 {[%emt 0:10:20]} 18. Na2 {[%emt 0:09:51][%cal Oa4a5]} f5 {[%emt 0:05:38] [#]} (18... a5 $14) 19. f3 {[%emt 0:01:05]} (19. a5 $1 $16) 19... a5 $14 {[%emt 0:00:00]} 20. b3 {[%emt 0:03:31]} f4 {[%emt 0:00:00]} 21. Bf2 {[%emt 0:01:43]} g5 {[%emt 0:00:00]} 22. Nc3 {[%emt 0:00:05]} h5 {[%emt 0:00:00]} 23. Nb5 {[%emt 0:00:03]} Qd8 {[%emt 0:00:00]} 24. Nxd6 {[%emt 0:01:58]} Qxd6 {[%emt 0:00:00]} 25. Bb5 {[%emt 0:00:10]} Bf6 {[%emt 0:00:00]} 26. Rfd1 {[%emt 0:03:49]} Ra7 {[%emt 0:00:00][%cal Og5g4]} 27. Kf1 {[%emt 0:04:19][%cal Bg1f1,Bf1e1,Be1d2,Bd2c2,Bc2b1][%mdl 32]} g4 {[%emt 0:00:00]} 28. hxg4 {[%emt 0:00:05]} (28. fxg4 hxg4 29. hxg4 Rg7 $17) 28... hxg4 {[%emt 0:00:00]} 29. Ke1 $1 {[%emt 0:00:35]} Bd8 {[%emt 0:00:00]} (29... Rh7 $15) 30. Kd2 $11 {[%emt 0:00:54]} Rg7 {[%emt 0:00:00]} 31. Kc2 {[%emt 0:01:42]} Rf6 {[%emt 0:00:00]} 32. Kb1 {[%emt 0:01:18]} Rh6 {[%emt 0:00:00]} 33. Ba6 {[%emt 0:03:18]} Bd7 {[%emt 0:00:00]} 34. Bb5 {[%emt 0:00:17]} Rh2 {[%emt 0:00:00]} 35. Bxd7 {[%emt 0:02:46]} Qxd7 {[%emt 0:00:29]} 36. Rh1 $2 {[%emt 0:14:20] [#]} (36. Qf1 $11 {and White stays safe.}) 36... Rxg2 $2 {[%emt 0:01:56]} (36... g3 $1 $19 {[%cal Oh2g2] aiming for ...Rxg2!} 37. Rhg1 (37. Rxh2 $2 gxh2 38. Qf1 Rh7 $19) 37... gxf2 38. Qxf2 Be7) 37. Rcg1 {[%emt 0:00:39]} (37. fxg4 $1 $15 Qxg4 38. Qb5) 37... Rxg1+ $19 {[%emt 0:01:08]} 38. Rxg1 {[%emt 0:00:51]} g3 {[%emt 0:02:57]} 39. Be1 {[%emt 0:00:31] White is weak on the dark squares} Qh3 {[%emt 0:00:52]} 40. Qb5 {[%emt 0:00:49]} Qd7 {[%emt 0:02:12]} (40... Kh7 $19 {Hoping for ...Be7.} 41. d6 (41. Qe8 $2 Be7 $19) 41... Qd7 (41... Qh2 42. Qe8 $11) 42. Qxd7 Rxd7) 41. Bc3 $2 {[%emt 0:30:49][%mdl 8192]} (41. Qe2 $1 $11 {and White is okay.}) 41... Qxb5 {[%emt 0:31:19]} 42. axb5 {[%emt 0:00:01][%mdl 4096] Endgame. KRB-KRB} Bc7 {[%emt 0:06:13] And now ...Bd6 would win.} 43. Kc2 {[%emt 0:00:00]} Bd6 {[%emt 0:00:00]} ({Weaker is} 43... g2 44. Be1 $17) 44. Kd3 {[%emt 0:00:00]} Rh7 {[%emt 0:00:00][%cal Oc5c4] ...c4+! is the strong threat.} ({Less strong is} 44... g2 45. Kc4 $19) 45. Kc4 {[%emt 0:00:00]} Kf7 {[%emt 0:00:00]} 46. Bxa5 {[%emt 0:00:00]} bxa5 {[%emt 0:00:00] KRB-KR} 47. b6 {[%emt 0:00:00]} Ke7 {[%emt 0:00:00]} 48. Kb5 {[%emt 0:00:00]} Kd7 {[%emt 0:00:00]} 49. Ra1 {[%emt 0:00:00]} g2 {[%emt 0:00:00] ( -> ...Rh1)} 50. Rxa5 {[%emt 0:00:00]} Bb8 {[%emt 0:00:00] Black mates.} (50... g1=R $2 {too greedy.} 51. Ra7+ Kc8 52. Rxh7 $16) 51. Ra8 {[%emt 0:00:00]} Kc8 {[%emt 0:00:00]} 52. Kc6 {[%emt 0:00:00]} Rh6+ {[%emt 0:00:00] Weighted Error Value: White=0.79/Black=0.25 (precise) .  Loses game:     	White=3     	---        Missed win:     	---       	Black=2      Mistake:       	White=1     	Black=2      Inaccurate:     	White=5     	Black=2      OK:         	White=7     	Black=11     Best:        	---       	Black=2      Strong:       	White=1     	---} 0-1

[Event "45th FIDE Olympiad 2024"]
[Site "Budapest"]
[Date "2024.09.11"]
[Round "1.54"]
[White "Omar, Aden Omar"]
[Black "Toczek, Grzegorz"]
[Result "1/2-1/2"]
[ECO "B15"]
[WhiteElo "1779"]
[BlackElo "2301"]
[Annotator "ChessBase"]
[PlyCount "114"]
[EventDate "2024.09.05"]
[EventType "team-tourn"]
[EventCountry "HUN"]
[SourceTitle "playchess.com"]
[Source "ChessBase"]
[SourceQuality "1"]
[WhiteTeam "Djibouti"]
[BlackTeam "Wales"]
[WhiteTeamCountry "DJI"]
[BlackTeamCountry "WLS"]
[TimeControl "40/5400+30:1800+30"]

1. e4 c6 2. d4 d5 3. Nc3 dxe4 4. Nxe4 Nf6 5. Nxf6+ exf6 6. Bd3 Qxd4 7. Nf3 Qd5 8. O-O Be6 9. Re1 Nd7 10. Bf4 Nc5 11. Bf1 O-O-O 12. Qe2 Be7 13. a4 Rhe8 14. b4 Nd7 15. Qa6 Bd6 16. Bxd6 Qxd6 17. Qxa7 Qb8 18. Qd4 Ne5 19. Qc3 Bd5 20. Nd4 Qd6 21. b5 Kb8 22. Reb1 c5 23. Nf5 Qd7 24. Ne3 Be6 25. b6 Qd4 26. Qa3 Nc4 27. Bxc4 Bxc4 28. c3 Qf4 29. Qxc5 Ba6 30. Rd1 Qe5 31. Qb4 f5 32. c4 f4 33. Nd5 f3 34. Nc7 Qg5 35. g3 Rxd1+ 36. Rxd1 Rd8 37. Nxa6+ bxa6 38. Qb3 Rxd1+ 39. Qxd1 Qf6 40. h3 Qxb6 41. Qxf3 Qe6 42. c5 Kc7 43. Kh2 g6 44. Qc3 h5 45. Qa5+ Kb7 46. Qb4+ Kc6 47. a5 Kd5 48. Qb6 Qc6 49. g4 hxg4 50. hxg4 Qxc5 51. Qb7+ Ke5 52. Qxf7 Qxa5 53. Qe7+ Kf4 54. Qf6+ Kxg4 55. Qxg6+ Kf4 56. Qf6+ Qf5 57. Qxa6 Ke5 1/2-1/2

[Event "45th FIDE Olympiad 2024"]
[Site "Budapest"]
[Date "2024.09.11"]
[Round "1.55"]
[White "Fressinet, Laurent"]
[Black "Rocha, Maximiliano"]
[Result "1/2-1/2"]
[ECO "D37"]
[WhiteElo "2616"]
[BlackElo "2156"]
[Annotator "TA"]
[PlyCount "63"]
[EventDate "2024.09.05"]
[EventType "team-tourn"]
[EventCountry "HUN"]
[SourceTitle "playchess.com"]
[Source "ChessBase"]
[SourceQuality "1"]
[WhiteTeam "France"]
[BlackTeam "Nicaragua"]
[WhiteTeamCountry "FRA"]
[BlackTeamCountry "NCA"]
[TimeControl "40/5400+30:1800+30"]

{[%evp 9,63,25,35,44,39,24,42,14,23,-6,4,-16,-7,-4,-4,-10,-14,-12,0,-47,0,-9,-14,-34,8,-16,-4,-25,-30,-21,-23,-15,-1,-36,0,-4,-14,-25,-38,-40,-20,-66,-71,-68,-44,-53,-56,-51,-37,-113,-91,-82,-70,-81,-29,-41]} 1. d4 {[%emt 0:00:04]} d5 {[%emt 0:00:11]} 2. c4 {[%emt 0:00:16]} e6 {[%emt 0:00:19]} 3. Nf3 {[%emt 0:01:48]} Nf6 {[%emt 0:01:18]} 4. Nc3 {[%emt 0:00:31]} h6 {[%emt 0:01:21]} 5. g3 {[%emt 0:02:13]} Nc6 {[%emt 0:02:32]} 6. Bg2 {[%emt 0:01:11]} Bd6 {[%emt 0:00:14]} 7. O-O {[%emt 0:03:39]} O-O {[%emt 0:06:22]} 8. c5 {[%emt 0:05:18] White is slightly better.} Be7 {[%emt 0:00:09]} 9. Bf4 {[%emt 0:00:28]} b6 {[%emt 0:10:40]} 10. cxb6 {[%emt 0:06:36]} cxb6 {[%emt 0:01:41]} 11. Ne5 {[%emt 0:04:46]} Bb7 {[%emt 0:05:59]} 12. Rc1 {[%emt 0:04:22][%cal Oc3d5]} Rc8 {[%emt 0:05:47]} 13. h4 {[%emt 0:04:06]} Nh5 {[%emt 0:20:58]} 14. Be3 {[%emt 0:07:28]} (14. Bd2 $11) 14... Nf6 {[%emt 0:09:55]} (14... Bd6 $15 {deserves consideration.}) 15. Qd3 {[%emt 0:09:48]} Nd7 {[%emt 0:13:41]} 16. f4 {[%emt 0:09:43]} (16. Nxc6 {simplifies} Rxc6 17. Bf4 Nf6 18. Rc2) 16... Na5 {[%emt 0:09:21]} 17. Bf2 {[%emt 0:06:05]} Nc4 {[%emt 0:02:45]} 18. Nxc4 {[%emt 0:05:50]} dxc4 {[%emt 0:01:42]} 19. Qd1 {[%emt 0:00:13]} Bxg2 {[%emt 0:00:07]} 20. Kxg2 {[%emt 0:00:03]} Nf6 {[%emt 0:00:41]} 21. e4 {[%emt 0:01:03]} h5 {[%emt 0:02:26]} (21... b5 $5) 22. Qf3 {[%emt 0:01:30]} Bb4 {[%emt 0:00:50]} 23. Ne2 {[%emt 0:02:39]} Qd7 {[%emt 0:00:17]} 24. a3 {[%emt 0:01:18]} Ba5 {[%emt 0:00:26]} 25. Be1 {[%emt 0:03:14]} (25. Bg1 $11 {is superior.}) 25... Bxe1 $15 {[%emt 0:00:54]} 26. Rfxe1 {[%emt 0:00:19]} b5 {[%emt 0:00:15]} 27. e5 {[%emt 0:04:31]} Ng4 {[%emt 0:01:29]} 28. Rcd1 {[%emt 0:00:15]} a5 {[%emt 0:01:23]} 29. Nc3 {[%emt 0:09:22]} (29. d5 $15) 29... b4 $17 {[%emt 0:00:21]} 30. Ne4 {[%emt 0:00:10]} Rc6 {[%emt 0:00:47]} 31. Nc5 {[%emt 0:01:22] [#]} Qc8 {[%emt 0:00:08]} ({Black should play} 31... Qd5 $1 $17 32. Qxd5 exd5) 32. axb4 {[%emt 0:04:11] Weighted Error Value: White=0.17 (very precise) /Black=0.13 (very precise) .  Mistake:       	White=3     	Black=2      Inaccurate:     	White=3     	Black=2      OK:         	White=5     	Black=12     Best:        	White=1     	Black=1} 1/2-1/2

[Event "45th FIDE Olympiad 2024"]
[Site "Budapest"]
[Date "2024.09.11"]
[Round "1.55"]
[White "Blackburn, Jonathan L B"]
[Black "Mohamed, Ali Dima"]
[Result "1-0"]
[ECO "A40"]
[WhiteElo "2202"]
[BlackElo "1761"]
[Annotator "ChessBase"]
[PlyCount "51"]
[EventDate "2024.09.05"]
[EventType "team-tourn"]
[EventCountry "HUN"]
[SourceTitle "playchess.com"]
[Source "ChessBase"]
[SourceQuality "1"]
[WhiteTeam "Wales"]
[BlackTeam "Djibouti"]
[WhiteTeamCountry "WLS"]
[BlackTeamCountry "DJI"]
[TimeControl "40/5400+30:1800+30"]

1. d4 e6 2. c4 b6 3. Nf3 Bb7 4. g3 g6 5. Bg2 d6 6. Nc3 Nd7 7. O-O Bg7 8. Rb1 Ne7 9. e4 h6 10. Be3 a6 11. Qd2 g5 12. h4 g4 13. Nh2 h5 14. f3 f5 15. fxg4 fxg4 16. Rf2 c5 17. dxc5 dxc5 18. Qd6 Nf8 19. Qf4 Bxc3 20. bxc3 Nf5 21. exf5 Qd3 22. Bxb7 Qxb1+ 23. Rf1 Qxf5 24. Qd6 Rd8 25. Bc6+ Kf7 26. Qxd8 1-0